bitfinex/quotes_BTCUSD_20250618
["timestamp","ask_amount","ask_price","bid_price","bid_amount"]
[1750244214343,5.02981866,104450.0,104440.0,60.25090982]
[1750244214588,4.99711464,104450.0,104440.0,60.25090982]
[1750244214823,4.99711464,104450.0,104440.0,60.25060982]
[1750244215063,4.96423464,104450.0,104440.0,60.28240982]
[1750244215293,4.96415464,104450.0,104440.0,60.28240982]
[1750244215519,4.96415464,104450.0,104440.0,60.28176982]
[1750244216494,4.88911464,104450.0,104440.0,60.31376982]
[1750244216732,4.18895464,104450.0,104440.0,60.31376982]
[1750244216991,3.96967464,104450.0,104440.0,60.31376982]
[1750244217220,4.18891464,104450.0,104440.0,60.31376982]
[1750244217452,4.26391464,104450.0,104440.0,60.24996982]
[1750244217683,4.29661866,104450.0,104440.0,60.24996982]
[1750244218154,4.98993919,104450.0,104440.0,60.24996982]
[1750244218633,5.15785515,104450.0,104440.0,60.24996982]
[1750244219337,5.25875515,104450.0,104440.0,60.24996982]
[1750244219579,5.18271413,104450.0,104440.0,60.24996982]
[1750244219833,5.27777965,104450.0,104440.0,60.24996982]
[1750244220996,5.18271413,104450.0,104440.0,60.24996982]
[1750244221467,5.16772349,104450.0,104440.0,60.24996982]
[1750244222410,5.16772349,104450.0,104440.0,60.10606822]
[1750244223097,5.16772349,104450.0,104440.0,59.70091269]
[1750244223365,5.24375462,104450.0,104440.0,59.33528364]
[1750244223607,5.24375462,104450.0,104440.0,59.31148364]
[1750244224077,5.21417968,104450.0,104440.0,59.31148364]
[1750244224311,5.00162023,104450.0,104440.0,59.28678364]
[1750244224544,5.18795621,104450.0,104440.0,59.28678364]
[1750244225006,5.21753115,104450.0,104440.0,59.28678364]
[1750244225463,5.14150002,104450.0,104440.0,59.28678364]
[1750244225703,5.23255999,104450.0,104440.0,59.28678364]
[1750244225955,5.03943776,104450.0,104440.0,59.28678364]
[1750244226186,5.23091693,104450.0,104440.0,59.28678364]
[1750244226416,5.20134199,104450.0,104440.0,59.28678364]
[1750244226651,4.81910199,104450.0,104440.0,59.31858364]
[1750244226884,5.03886199,104450.0,104440.0,59.31858364]
[1750244227116,4.99897398,104450.0,104440.0,59.31858364]
[1750244227347,4.99898183,104450.0,104440.0,59.31858364]
[1750244227580,4.93852268,104450.0,104440.0,59.31858364]
[1750244227811,5.01352268,104450.0,104440.0,59.31858364]
[1750244228035,5.01344268,104450.0,104440.0,59.35038364]
[1750244228265,5.01344268,104450.0,104440.0,59.31858364]
[1750244228500,5.04301762,104450.0,104440.0,59.28678364]
[1750244228740,4.93844268,104450.0,104440.0,59.34948364]
[1750244228970,4.33844268,104450.0,104440.0,59.34948364]
[1750244229228,4.93844268,104450.0,104440.0,59.34948364]
[1750244229669,4.81114319,104450.0,104440.0,59.34948364]
[1750244229888,4.83994019,104450.0,104440.0,59.34948364]
[1750244230353,4.91494019,104450.0,104440.0,59.34948364]
[1750244230773,4.94764358,104450.0,104440.0,59.34948364]
[1750244231454,4.94772358,104450.0,104440.0,59.34948364]
[1750244232050,4.87272358,104450.0,104440.0,59.34948364]
[1750244232288,4.94772358,104450.0,104440.0,59.34948364]
[1750244232499,4.87272464,104450.0,104440.0,59.34948364]
[1750244232706,4.94772464,104450.0,104440.0,59.34948364]
[1750244233343,4.87165574,104450.0,104440.0,59.34948364]
[1750244233574,4.79665574,104450.0,104440.0,59.34948364]
[1750244233791,4.51354348,104450.0,104440.0,59.34948364]
[1750244234012,4.68530348,104450.0,104440.0,59.34948364]
[1750244234243,4.76030348,104450.0,104440.0,59.34948364]
[1750244234476,4.88550639,104450.0,104440.0,59.08759035]
[1750244234706,4.96050639,104450.0,104440.0,59.08759035]
[1750244234946,4.26050639,104450.0,104440.0,59.08759035]
[1750244236124,4.10940607,104450.0,104440.0,59.08759035]
[1750244236362,4.18440607,104450.0,104440.0,59.08759035]
[1750244236796,4.10940607,104450.0,104440.0,59.08759035]
[1750244237029,3.93764607,104450.0,104440.0,59.12039035]
[1750244237250,3.93301581,104450.0,104440.0,59.12039035]
[1750244237521,4.15453128,104450.0,104440.0,59.12039035]
[1750244237748,4.26513485,104450.0,104440.0,59.12039035]
[1750244237970,4.96513485,104450.0,104440.0,59.12039035]
[1750244238182,4.96505485,104450.0,104440.0,59.12039035]
[1750244238610,4.88894172,104450.0,104440.0,59.12039035]
[1750244238833,4.96507434,104450.0,104440.0,59.12039035]
[1750244239066,4.97901666,104450.0,104440.0,59.05669035]
[1750244239286,4.94881666,104450.0,104440.0,59.05669035]
[1750244239724,4.94881666,104450.0,104440.0,59.0476965]
[1750244240597,4.94881919,104450.0,104440.0,59.0476965]
[1750244241032,4.9338295,104450.0,104440.0,59.0476965]
[1750244242120,4.9035295,104450.0,104440.0,59.0476965]
[1750244243032,4.99856979,104450.0,104440.0,59.0476965]
[1750244243251,4.9035295,104450.0,104440.0,59.0476965]
[1750244244096,4.91851984,104450.0,104440.0,59.0476965]
[1750244244311,5.01941984,104450.0,104440.0,58.8925518]
[1750244244520,5.11446013,104450.0,104440.0,58.8925518]
[1750244245645,5.11446013,104450.0,104440.0,58.9228518]
[1750244247046,5.11446013,104450.0,104440.0,58.8925518]
[1750244247704,5.14666013,104450.0,104440.0,58.8925518]
[1750244248346,5.11446013,104450.0,104440.0,58.8925518]
[1750244248563,5.10776814,104450.0,104440.0,58.8925518]
[1750244248775,5.11446206,104450.0,104440.0,58.8925518]
[1750244249230,5.01356206,104450.0,104440.0,58.8925518]
[1750244249868,5.01356206,104450.0,104440.0,58.9252518]
[1750244250515,4.97563263,104450.0,104440.0,53.9252518]
[1750244250804,4.97563263,104450.0,104440.0,53.6753768]
[1750244251021,4.96064229,104450.0,104440.0,53.6753768]
[1750244253829,4.96064229,104450.0,104440.0,53.6426768]
[1750244254037,5.00723234,104450.0,104440.0,53.6426768]
[1750244255118,5.00723195,104450.0,104440.0,53.6426768]
[1750244255965,5.10813195,104450.0,104440.0,53.6426768]
[1750244256862,5.10813195,104450.0,104440.0,53.6421768]
[1750244257524,5.13943195,104450.0,104440.0,53.6201988]
[1750244258220,5.13943195,104450.0,104440.0,53.6201473]
[1750244258221,5.08232154,104450.0,104440.0,53.6201473]
[1750244258464,5.13943202,104450.0,104440.0,53.6201473]
[1750244258706,5.13723202,104450.0,104440.0,53.6201473]
[1750244258915,5.08012154,104450.0,104440.0,53.6201473]
[1750244259127,5.04882154,104450.0,104440.0,53.6201473]
[1750244259358,5.01722154,104450.0,104440.0,53.6201473]
[1750244259572,5.01722103,104450.0,104440.0,53.6201473]
[1750244260000,4.79798103,104450.0,104440.0,53.6201473]
[1750244260215,5.01722103,104450.0,104440.0,53.6201473]
[1750244260435,5.04475432,104450.0,104440.0,53.6201473]
[1750244260685,5.06379391,104450.0,104440.0,53.6201473]
[1750244262401,4.98764609,104450.0,104440.0,53.1978273]
[1750244263022,4.88788007,104450.0,104440.0,53.1978273]
[1750244263650,4.91745501,104450.0,104440.0,53.1978273]
[1750244263860,4.89821501,104450.0,104440.0,53.2284273]
[1750244264078,5.07076957,104450.0,104440.0,53.2284273]
[1750244264315,5.07076957,104450.0,104440.0,53.05585077]
[1750244264920,5.07076948,104450.0,104440.0,53.05585077]
[1750244265334,5.10034442,104450.0,104440.0,53.05585077]
[1750244265538,4.88322442,104450.0,104440.0,53.05585077]
[1750244265741,5.10022442,104450.0,104440.0,53.05585077]
[1750244265960,4.88322442,104450.0,104440.0,53.05585077]
[1750244266158,5.07064948,104450.0,104440.0,53.08815077]
[1750244267027,5.07064948,104450.0,104440.0,53.05585077]
[1750244267223,4.87478035,104450.0,104440.0,53.08825077]
[1750244267452,4.88977092,104450.0,104440.0,53.08825077]
[1750244267610,4.67466891,104450.0,104440.0,53.08825077]
[1750244268616,4.45782891,104450.0,104440.0,53.08825077]
[1750244268822,4.47132534,104450.0,104440.0,53.08825077]
[1750244268960,4.68804534,104450.0,104440.0,53.08825077]
[1750244269563,4.68796534,104450.0,104440.0,53.08825077]
[1750244269954,4.51936534,104450.0,104440.0,53.08825077]
[1750244270243,4.68796534,104450.0,104440.0,53.08825077]
[1750244271286,4.68796607,104450.0,104440.0,53.08825077]
[1750244271487,4.68127214,104450.0,104440.0,53.08825077]
[1750244271693,4.68796617,104450.0,104440.0,53.08825077]
[1750244272931,4.72359941,104450.0,104440.0,53.08825077]
[1750244273466,4.71690538,104450.0,104440.0,53.08825077]
[1750244273919,4.70390538,104450.0,104440.0,53.08825077]
[1750244274152,4.71059926,104450.0,104440.0,53.08825077]
[1750244274380,4.72059926,104450.0,104440.0,53.08825077]
[1750244274609,4.66969545,104450.0,104440.0,53.08825077]
[1750244274849,4.66300157,104450.0,104440.0,53.08825077]
[1750244275315,4.66969558,104450.0,104440.0,53.08825077]
[1750244275554,4.64100157,104450.0,104440.0,53.08825077]
[1750244276075,4.66369555,104450.0,104440.0,53.08825077]
[1750244276542,4.66369545,104450.0,104440.0,53.08825077]
[1750244276998,4.69932869,104450.0,104440.0,53.08825077]
[1750244277723,4.77547603,104450.0,104440.0,53.08825077]
[1750244278189,4.79046641,104450.0,104440.0,53.08825077]
[1750244278886,4.64046632,104450.0,104440.0,53.08825077]
[1750244280348,4.63377301,104450.0,104440.0,53.08825077]
[1750244280585,4.64046589,104450.0,104440.0,53.08825077]
[1750244280898,4.66968083,104450.0,104440.0,53.08825077]
[1750244281130,4.59353301,104450.0,104440.0,53.05585077]
[1750244281373,4.59353301,104450.0,104440.0,53.02525077]
[1750244281613,4.66967656,104450.0,104440.0,53.05695077]
[1750244281857,4.66967656,104450.0,104440.0,53.08855077]
[1750244282102,4.03463704,104450.0,104440.0,50.23212877]
[1750244282341,4.05011604,104450.0,104440.0,50.20082777]
[1750244282818,4.05011605,104450.0,104440.0,50.20082777]
[1750244284259,4.05011605,104450.0,104440.0,50.19898777]
[1750244284495,4.03980605,104450.0,104440.0,50.19898777]
[1750244285446,4.08519698,104450.0,104440.0,50.19898777]
[1750244285671,4.31134004,104450.0,104440.0,50.19708777]
[1750244285910,4.31134004,104450.0,104440.0,50.18067277]
[1750244286160,3.49538778,104450.0,104440.0,49.32843877]
[1750244286372,3.40034749,104450.0,104440.0,49.21952577]
[1750244287292,3.40034749,104450.0,104440.0,49.0486988]
[1750244288373,3.40034749,104450.0,104440.0,48.87721543]
[1750244290207,3.38434749,104450.0,104440.0,48.87721543]
[1750244290635,3.40534749,104450.0,104440.0,48.87721543]
[1750244290854,3.39865509,104450.0,104440.0,48.87721543]
[1750244291068,3.39533991,104450.0,104440.0,48.87721543]
[1750244291333,3.40733991,104450.0,104440.0,48.70485598]
[1750244291973,3.39234898,104450.0,104440.0,48.70485598]
[1750244293477,3.31734898,104450.0,104440.0,48.70485598]
[1750244293713,3.39234898,104450.0,104440.0,48.70485598]
[1750244296354,3.48738559,104450.0,104440.0,48.70485598]
[1750244297309,3.48738559,104450.0,104440.0,48.7003582]
[1750244297535,3.3923453,104450.0,104440.0,48.7003582]
[1750244298292,3.3923453,104450.0,104440.0,48.69361149]
[1750244298528,3.48736112,104450.0,104440.0,48.54968148]
[1750244299025,3.48736074,104450.0,104440.0,48.54968148]
[1750244299210,3.82315744,104450.0,104440.0,48.54968148]
[1750244299451,3.92405744,104450.0,104440.0,48.54968148]
[1750244300339,3.92405744,104450.0,104440.0,48.54938148]
[1750244300547,3.92405744,104450.0,104440.0,48.49788064]
[1750244301435,3.70805744,104450.0,104440.0,48.49788064]
[1750244301671,3.79904162,104450.0,104440.0,48.49788064]
[1750244302127,3.83194162,104450.0,104440.0,48.49788064]
[1750244302811,3.79904162,104450.0,104440.0,48.32271641]
[1750244303047,3.89405999,104450.0,104440.0,48.32271641]
[1750244303475,3.89405999,104450.0,104440.0,48.32191641]
[1750244305286,3.89405999,104450.0,104440.0,48.32141641]
[1750244305974,3.86275999,104450.0,104440.0,48.32141641]
[1750244306209,3.86275999,104450.0,104440.0,48.14391375]
[1750244307854,3.86275999,104450.0,104440.0,48.13230228]
[1750244308090,3.89535999,104450.0,104440.0,48.13230228]
[1750244308510,3.92755999,104450.0,104440.0,48.13230228]
[1750244308946,3.92711999,104450.0,104440.0,48.11200128]
[1750244309161,3.89491999,104450.0,104440.0,48.11200128]
[1750244310032,3.89492799,104450.0,104440.0,48.11200128]
[1750244311109,3.86232799,104450.0,104440.0,48.11200128]
[1750244311317,3.7547679,104450.0,104440.0,37.18577513]
[1750244311548,3.7547679,104450.0,104440.0,35.65134643]
[1750244311785,3.7547679,104450.0,104440.0,34.50052612]
[1750244312001,3.7547679,104450.0,104440.0,32.96610228]
[1750244312212,3.7337679,104450.0,104440.0,30.63447231]
[1750244312430,3.7337679,104450.0,104440.0,29.07005912]
[1750244312639,3.7217679,104450.0,104440.0,27.53563042]
[1750244312873,3.7217679,104450.0,104440.0,25.43982406]
[1750244313090,3.81244941,104450.0,104440.0,23.52029183]
[1750244313312,3.5489679,104450.0,104440.0,15.36607042]
[1750244313535,3.52164941,104450.0,104440.0,11.75019288]
[1750244313768,3.5489679,104450.0,104440.0,9.64267446]
[1750244314012,3.40680203,104450.0,104440.0,7.85854774]
[1750244314242,3.40680203,104450.0,104440.0,7.15274068]
[1750244314243,3.10549887,104450.0,104440.0,7.15274068]
[1750244314492,3.15549887,104450.0,104440.0,6.38553362]
[1750244314712,3.19503972,104450.0,104440.0,5.61832656]
[1750244314942,3.53503972,104450.0,104440.0,4.82113016]
[1750244315206,3.46003972,104450.0,104440.0,4.0539231]
[1750244315427,3.10057887,104450.0,104440.0,3.17675509]
[1750244315698,3.28291972,104450.0,104440.0,2.40954803]
[1750244315906,3.29191972,104450.0,104440.0,1.61235162]
[1750244316121,3.30691972,104450.0,104440.0,1.22874809]
[1750244316331,3.09139972,104450.0,104440.0,0.46154103]
[1750244316538,3.30691972,104450.0,104440.0,0.0779375]
[1750244316762,3.33960123,104450.0,104440.0,2e-08]
[1750244316980,6.41011639,104420.0,104410.0,0.20004]
[1750244317215,6.57321574,104420.0,104410.0,0.20004]
[1750244317427,6.16455444,104420.0,104410.0,0.20004]
[1750244317683,6.24335444,104420.0,104410.0,0.20004]
[1750244317898,6.71802942,104420.0,104410.0,0.20004]
[1750244318338,6.40078333,104420.0,104410.0,0.20004]
[1750244318567,6.56850333,104420.0,104410.0,0.20004]
[1750244318801,6.15078333,104420.0,104410.0,0.20004]
[1750244319011,1.29702861,104420.0,104410.0,0.20004]
[1750244319239,1.31402861,104420.0,104410.0,0.20004]
[1750244319441,1.14630861,104420.0,104410.0,0.20004]
[1750244319652,1.32402861,104420.0,104410.0,0.20004]
[1750244319824,1.32402861,104420.0,104410.0,0.23064]
[1750244320045,1.32402861,104420.0,104410.0,0.26184]
[1750244320265,1.15630861,104420.0,104410.0,0.26184]
[1750244320687,1.15630861,104420.0,104410.0,0.26284]
[1750244320688,0.95630861,104420.0,104410.0,0.26284]
[1750244320893,1.10042486,104420.0,104410.0,0.26284]
[1750244321108,1.08258486,104420.0,104410.0,0.16284]
[1750244321310,1.18592486,104420.0,104410.0,0.1652341]
[1750244321520,1.18592486,104420.0,104410.0,0.16284]
[1750244321968,1.15892486,104420.0,104410.0,0.16284]
[1750244322174,1.16692486,104420.0,104410.0,0.16384]
[1750244322376,1.18292486,104420.0,104410.0,0.16384]
[1750244322598,0.52508486,104420.0,104410.0,0.16384]
[1750244322836,0.58453464,104420.0,104410.0,0.10833409]
[1750244323068,0.92453464,104420.0,104410.0,0.10833409]
[1750244323325,1.11602882,104420.0,104410.0,0.10594]
[1750244323781,1.10802882,104420.0,104410.0,0.10594]
[1750244324063,0.94030882,104420.0,104410.0,0.10594]
[1750244324262,1.10802882,104420.0,104410.0,0.00594]
[1750244324467,0.91178354,104420.0,104410.0,0.00594]
[1750244324680,1.07942354,104420.0,104410.0,0.00594]
[1750244324882,1.07940723,104420.0,104410.0,0.00594]
[1750244325086,1.06340723,104420.0,104410.0,0.00494]
[1750244325287,1.06940723,104420.0,104410.0,0.00694]
[1750244325494,1.07940723,104420.0,104410.0,0.00694]
[1750244325715,1.07340723,104420.0,104410.0,0.00594]
[1750244325929,0.90576723,104420.0,104410.0,0.00594]
[1750244326133,1.07165478,104420.0,104410.0,0.00694]
[1750244326332,1.0783223,104420.0,104410.0,0.00694]
[1750244329047,1.078319,104420.0,104410.0,0.00694]
[1750244329897,1.077879,104420.0,104410.0,0.00694]
[1750244330724,0.45710408,104420.0,104410.0,0.00694]
[1750244330936,0.93534238,104420.0,104410.0,0.00694]
[1750244331147,0.92867986,104420.0,104410.0,0.00694]
[1750244331352,0.76829925,104420.0,104410.0,0.00694]
[1750244331560,0.92867986,104420.0,104410.0,0.00694]
[1750244332200,0.55070732,104410.0,104400.0,0.369894]
[1750244332405,0.21070732,104410.0,104400.0,0.46613576]
[1750244332609,0.36804997,104410.0,104400.0,0.55496253]
[1750244333235,0.36796997,104410.0,104400.0,0.36339165]
[1750244333451,0.37096997,104410.0,104400.0,0.36439165]
[1750244333666,0.37896997,104410.0,104400.0,0.27756488]
[1750244335183,0.21212997,104410.0,104400.0,0.46913576]
[1750244335602,0.37880997,104410.0,104400.0,0.76662282]
[1750244335820,0.02057744,104410.0,104400.0,0.77620118]
[1750244336036,0.03015405,104410.0,104400.0,0.89150674]
[1750244336245,0.0397313,104410.0,104400.0,0.90108473]
[1750244336450,0.04930874,104410.0,104400.0,0.57473131]
[1750244336654,0.04630874,104410.0,104400.0,0.86164001]
[1750244336862,0.21070722,104410.0,104400.0,0.46700373]
[1750244337332,0.02615469,104410.0,104400.0,0.47758218]
[1750244337538,0.02615469,104410.0,104400.0,0.79422568]
[1750244337539,0.03573158,104410.0,104400.0,0.79422568]
[1750244337752,0.0357313,104410.0,104400.0,0.80380367]
[1750244337957,0.0357313,104410.0,104400.0,0.89995289]
[1750244338186,0.0377313,104410.0,104400.0,0.8913749]
[1750244338621,0.02815405,104410.0,104400.0,0.8913749]
[1750244339054,0.009,104410.0,104400.0,0.90095289]
[1750244339264,0.01857689,104410.0,104400.0,0.61304373]
[1750244339473,0.03773112,104410.0,104400.0,0.90095289]
[1750244339908,0.03773103,104410.0,104400.0,0.91053079]
[1750244340120,0.03773103,104410.0,104400.0,0.61304373]
[1750244340342,0.03773103,104410.0,104400.0,0.91053079]
[1750244340553,0.009,104410.0,104400.0,0.91053079]
[1750244340991,0.009,104410.0,104400.0,0.81438157]
[1750244341646,0.009,104410.0,104400.0,0.68329451]
[1750244341854,0.009,104410.0,104400.0,0.98078157]
[1750244342089,0.009,104410.0,104400.0,0.68329451]
[1750244342331,0.009,104410.0,104400.0,1.62305613]
[1750244342550,0.009,104410.0,104400.0,1.50580535]
[1750244342770,0.009,104410.0,104400.0,1.7441675]
[1750244342976,0.009,104410.0,104400.0,0.80440588]
[1750244343191,0.009,104410.0,104400.0,1.71932535]
[1750244343401,0.007,104410.0,104400.0,1.71832535]
[1750244344036,0.008,104410.0,104400.0,1.72132535]
[1750244344254,0.001,104410.0,104400.0,1.72032535]
[1750244344686,0.001,104410.0,104400.0,1.82132535]
[1750244345166,0.001,104410.0,104400.0,1.87306377]
[1750244345375,0.001,104410.0,104400.0,1.77306377]
[1750244345590,0.003,104410.0,104400.0,1.77406377]
[1750244346012,0.003,104410.0,104400.0,1.72232535]
[1750244347075,0.003,104410.0,104400.0,0.78256373]
[1750244347299,0.003,104410.0,104400.0,1.72232535]
[1750244347504,0.003,104410.0,104400.0,1.7368662]
[1750244348336,0.003,104410.0,104400.0,2.1561187]
[1750244348567,0.003,104410.0,104400.0,2.19441415]
[1750244348748,0.00047391,104420.0,104410.0,0.33582514]
[1750244348983,0.00047391,104420.0,104410.0,0.87988747]
[1750244349194,0.00047391,104420.0,104410.0,1.09308747]
[1750244349412,0.00047391,104420.0,104410.0,1.06435605]
[1750244349650,0.22977971,104470.0,104460.0,0.20600169]
[1750244349851,0.22020823,104470.0,104460.0,0.69849174]
[1750244350078,0.22020823,104470.0,104460.0,0.40100468]
[1750244350558,0.21063648,104470.0,104460.0,0.40100468]
[1750244350799,0.20106463,104470.0,104460.0,0.40100468]
[1750244351072,0.20106463,104470.0,104460.0,0.34929092]
[1750244352180,0.20506463,104470.0,104460.0,0.34929092]
[1750244352485,0.20506463,104470.0,104460.0,0.64677798]
[1750244352706,0.20506463,104470.0,104460.0,0.34929092]
[1750244352957,0.20506463,104470.0,104460.0,0.04704747]
[1750244353192,0.37882463,104470.0,104460.0,0.00104747]
[1750244353428,0.44948573,104470.0,104460.0,0.04804747]
[1750244353684,0.78948573,104470.0,104460.0,0.04804747]
[1750244355346,0.72768573,104470.0,104460.0,0.04804747]
[1750244355551,0.72768573,104470.0,104460.0,0.05193222]
[1750244356204,0.72768593,104470.0,104460.0,0.05193222]
[1750244357049,0.72768593,104470.0,104460.0,0.04712747]
[1750244358161,0.75818593,104470.0,104460.0,0.04712747]
[1750244358343,0.72728593,104470.0,104460.0,0.04712747]
[1750244358869,0.72728583,104470.0,104460.0,0.04652747]
[1750244360791,0.74501594,104470.0,104460.0,0.04652747]
[1750244361260,0.7450242,104470.0,104460.0,0.04652747]
[1750244361684,0.74503207,104470.0,104460.0,0.04652747]
[1750244361899,0.77583207,104470.0,104460.0,0.04652747]
[1750244362815,0.80843207,104470.0,104460.0,0.04652747]
[1750244364350,0.80743207,104470.0,104460.0,0.04652747]
[1750244364605,0.80843207,104470.0,104460.0,0.04652747]
[1750244366996,0.799563,104470.0,104460.0,0.04652747]
[1750244367213,0.80844189,104470.0,104460.0,0.04652747]
[1750244367913,0.64208189,104470.0,104460.0,0.04652747]
[1750244368125,0.80820189,104470.0,104460.0,0.04652747]
[1750244368762,0.80820189,104470.0,104460.0,0.00012747]
[1750244368974,0.81486873,104470.0,104460.0,0.04652747]
[1750244369417,0.62337622,104470.0,104460.0,0.04652747]
[1750244369625,0.81481873,104470.0,104460.0,0.04652747]
[1750244369841,0.81485868,104470.0,104460.0,0.04652747]
[1750244370525,0.80819184,104470.0,104460.0,0.04652747]
[1750244370743,0.81486239,104470.0,104460.0,0.04652747]
[1750244370996,0.80819462,104470.0,104460.0,0.04652747]
[1750244371207,0.81486718,104470.0,104460.0,0.04652747]
[1750244375298,0.81489564,104470.0,104460.0,0.04652747]
[1750244376144,0.81492467,104470.0,104460.0,0.04652747]
[1750244376555,0.91492467,104470.0,104460.0,0.04652747]
[1750244376766,0.89711948,104470.0,104460.0,0.04652747]
[1750244376975,0.91493531,104470.0,104460.0,0.04652747]
[1750244377993,0.9149428,104470.0,104460.0,0.04652747]
[1750244378229,0.9149578,104470.0,104460.0,0.04652747]
[1750244379270,0.9142378,104470.0,104460.0,0.04652747]
[1750244379485,0.82736308,104470.0,104460.0,0.00012747]
[1750244379702,1.18239941,104470.0,104460.0,0.00012747]
[1750244379915,1.15387413,104470.0,104460.0,0.00012747]
[1750244380564,0.60693369,104460.0,104450.0,0.0464]
[1750244380771,0.43932522,104460.0,104450.0,0.04649043]
[1750244380983,0.64035891,104460.0,104450.0,0.04649043]
[1750244381620,0.62252808,104460.0,104450.0,0.04649043]
[1750244381828,0.62252808,104460.0,104450.0,0.00109043]
[1750244382014,0.62752808,104460.0,104450.0,0.00109043]
[1750244382682,0.65630708,104460.0,104450.0,0.00109043]
[1750244382977,0.65629959,104460.0,104450.0,0.00109043]
[1750244383192,0.66129959,104460.0,104450.0,0.00109043]
[1750244383399,0.66129761,104460.0,104450.0,0.00109043]
[1750244383829,0.66129762,104460.0,104450.0,0.00109043]
[1750244386895,0.66129762,104460.0,104450.0,0.00113043]
[1750244388949,0.66128859,104460.0,104450.0,0.00113043]
[1750244391762,0.66128844,104460.0,104450.0,0.00113043]
[1750244392233,0.66128843,104460.0,104450.0,0.00113043]
[1750244392910,0.68978515,104460.0,104450.0,0.00113043]
[1750244393151,0.85518515,104460.0,104450.0,0.00113043]
[1750244394293,0.83960941,104460.0,104450.0,0.00113043]
[1750244394519,0.85617911,104460.0,104450.0,0.00113043]
[1750244396606,1.00242087,104460.0,104450.0,0.00113043]
[1750244396850,0.61166677,104430.0,104420.0,0.04584]
[1750244397091,0.79263532,104430.0,104420.0,0.04584]
[1750244397331,0.78373835,104430.0,104420.0,0.04584]
[1750244397559,0.81252335,104430.0,104420.0,0.04584]
[1750244398645,0.91252335,104430.0,104420.0,0.04584]
[1750244398870,0.91852335,104430.0,104420.0,0.04684]
[1750244399340,0.91185177,104430.0,104420.0,0.04684]
[1750244399570,0.92085177,104430.0,104420.0,0.04784]
[1750244399818,0.92973747,104430.0,104420.0,0.04784]
[1750244400049,0.92085177,104430.0,104420.0,0.04784]
[1750244400791,0.97751268,104430.0,104420.0,0.00204]
[1750244401036,1.03286244,104430.0,104420.0,0.00204]
[1750244401277,0.97751268,104430.0,104420.0,0.00204]
[1750244402479,0.97375491,104430.0,104420.0,0.00204]
[1750244402959,1.05756966,104430.0,104420.0,0.00204]
[1750244403445,1.09552298,104430.0,104420.0,0.00204]
[1750244403699,0.7868199,104430.0,104420.0,0.00204]
[1750244403924,0.82751315,104430.0,104420.0,0.00204]
[1750244404154,0.66211315,104430.0,104420.0,0.00204]
[1750244404382,0.82751315,104430.0,104420.0,0.00204]
[1750244404607,0.20112997,104410.0,104400.0,0.26544105]
[1750244404843,0.20112997,104410.0,104400.0,0.36168281]
[1750244405085,0.36652997,104410.0,104400.0,0.36168281]
[1750244405310,0.21070732,104410.0,104400.0,0.36168281]
[1750244405535,0.20112997,104410.0,104400.0,0.36168281]
[1750244405765,0.36652997,104410.0,104400.0,0.36168281]
[1750244406061,0.36667204,104410.0,104400.0,0.36168281]
[1750244406305,0.37167204,104410.0,104400.0,0.36268281]
[1750244406525,0.43787204,104410.0,104400.0,0.28643061]
[1750244406737,0.37167204,104410.0,104400.0,0.28643061]
[1750244406955,0.37467204,104410.0,104400.0,0.28743061]
[1750244407411,0.37467204,104410.0,104400.0,0.30450753]
[1750244407637,0.37467204,104410.0,104400.0,0.28743061]
[1750244407638,0.40767204,104410.0,104400.0,0.28743061]
[1750244407854,0.44087204,104410.0,104400.0,0.28743061]
[1750244408065,0.44087204,104410.0,104400.0,0.24159061]
[1750244408283,0.44087204,104410.0,104400.0,0.176648]
[1750244408557,0.78087204,104410.0,104400.0,0.04784]
[1750244408971,0.78087204,104410.0,104400.0,0.002]
[1750244409190,0.23806004,104410.0,104400.0,0.15862261]
[1750244409401,0.37463204,104410.0,104400.0,0.2265096]
[1750244409630,0.37463204,104410.0,104400.0,0.15862261]
[1750244409873,0.37463204,104410.0,104400.0,0.11278261]
[1750244410095,0.20923204,104410.0,104400.0,0.15862261]
[1750244410310,0.37463204,104410.0,104400.0,0.15862261]
[1750244410737,0.20923204,104410.0,104400.0,0.15862261]
[1750244410960,0.20923204,104410.0,104400.0,0.79391797]
[1750244410961,0.02729603,104410.0,104400.0,0.79391797]
[1750244411194,0.03687356,104410.0,104400.0,0.79152417]
[1750244411415,0.03687347,104410.0,104400.0,0.49403711]
[1750244411630,0.03687347,104410.0,104400.0,0.79152417]
[1750244412078,0.02729612,104410.0,104400.0,0.79152417]
[1750244412509,0.02729603,104410.0,104400.0,0.79152417]
[1750244412729,0.00814207,104410.0,104400.0,0.79152417]
[1750244412942,0.00814207,104410.0,104400.0,0.49403711]
[1750244413153,0.00814207,104410.0,104400.0,0.79152417]
[1750244413846,0.00514207,104410.0,104400.0,0.79052417]
[1750244414070,0.00114207,104410.0,104400.0,0.79052417]
[1750244415407,0.00114207,104410.0,104400.0,0.71527197]
[1750244415408,0.00514207,104410.0,104400.0,0.71527197]
[1750244416137,0.17493579,104430.0,104420.0,0.01454085]
[1750244416394,0.20112408,104430.0,104420.0,0.17406442]
[1750244416605,0.20112408,104430.0,104420.0,0.37517512]
[1750244416817,0.20112408,104430.0,104420.0,0.27517512]
[1750244417045,0.20112408,104430.0,104420.0,0.28475182]
[1750244417315,0.20112408,104430.0,104420.0,0.29432816]
[1750244417544,0.22524265,104430.0,104420.0,0.2761753]
[1750244417782,0.21566723,104430.0,104420.0,0.2665986]
[1750244418002,0.21566723,104430.0,104420.0,0.2761753]
[1750244418213,0.21566723,104430.0,104420.0,0.07506442]
[1750244418214,0.20609163,104430.0,104420.0,0.07506442]
[1750244418427,0.01457579,104430.0,104420.0,0.07506442]
[1750244418642,0.02057579,104430.0,104420.0,0.08564112]
[1750244419021,0.02057579,104430.0,104420.0,0.10018197]
[1750244419234,0.02057579,104430.0,104420.0,0.10975858]
[1750244419678,0.011,104430.0,104420.0,0.09060527]
[1750244420332,0.0751,104430.0,104420.0,0.00247391]
[1750244420555,0.0751,104430.0,104420.0,0.04823391]
[1750244421206,0.24042,104430.0,104420.0,0.00247391]
[1750244421421,0.269202,104430.0,104420.0,0.04823391]
[1750244424949,0.270202,104430.0,104420.0,0.04823391]
[1750244429427,0.104882,104430.0,104420.0,0.04823391]
[1750244429635,0.270202,104430.0,104420.0,0.07846287]
[1750244429852,0.270202,104430.0,104420.0,0.05062748]
[1750244430735,0.270202,104430.0,104420.0,0.04823391]
[1750244430967,0.610202,104430.0,104420.0,0.04823391]
[1750244431424,0.61686652,104430.0,104420.0,0.04823391]
[1750244432178,0.6168664,104430.0,104420.0,0.00247391]
[1750244434858,0.6168669,104430.0,104420.0,0.00247391]
[1750244437512,0.61686758,104430.0,104420.0,0.00247391]
[1750244438845,0.64533257,104430.0,104420.0,0.00247391]
[1750244440359,0.64533582,104430.0,104420.0,0.00247391]
[1750244442802,0.61687083,104430.0,104420.0,0.00247391]
[1750244443016,0.64533616,104430.0,104420.0,0.00247391]
[1750244443219,0.48001616,104430.0,104420.0,0.00247391]
[1750244443416,0.64529616,104430.0,104420.0,0.00247391]